Workbook

Sheet Intro
A1: Multi, intro hold
E3: 1 | F3: 2 | G3: 3 | H3: 4 | I3: 5 | J3: 6 | K3: 7 | L3: 8 | M3: 9 | N3: 10 | O3: 11 | P3: 12 | Q3: 13 | R3: 14 | S3: 15 | T3: 16 | V3: Total | X3: Placering
A5: Henrik Caspersen - Niels Krøjgaard | E5: 14.45 | F5: 4.56 | G5: 12.66 | H5: 9.25 | I5: 19.34 | J5: 16.8 | K5: 8.06 | L5: 15.34 | M5: 7.69 | N5: 18.94 | O5: 15.94 | P5: 13.09 | Q5: 7.03 | R5: 16.85 | S5: 9.24 | T5: 13.3 | V5: =AVERAGE(E5:T5) -> 12.65875 | X5: 1
A6: H K Sørensen - Niels Henriksen | E6: 13.08 | F6: 5.78 | G6: 12.76 | H6: 13.74 | I6: 9.06 | J6: 12.57 | K6: 4.75 | L6: 9.41 | M6: 13.05 | N6: 9.49 | O6: 14.95 | P6: 9.48 | Q6: 6.92 | R6: 17.13 | S6: 12.21 | T6: 16.43 | V6: =AVERAGE(E6:T6) -> 11.300625 | X6: 2
A8: Morten Bilde - Søren Cilleborg Bilde | E8: 10.41 | F8: 10.8 | G8: 7.34 | H8: 6.26 | I8: 10.91 | J8: 12.97 | K8: 11.68 | L8: 8.01 | M8: 8.15 | N8: 10.6 | O8: 11.11 | P8: 12.49 | Q8: 2.67 | R8: 15.2 | S8: 12.14 | T8: 8.02 | V8: =AVERAGE(E8:T8) -> 9.9225 | X8: 8
A9: Ricardo Mirasola - Jan Kølbæk | E9: 14.07 | F9: 4.78 | G9: 7.24 | H9: 10.75 | I9: 3.64 | J9: 13.34 | K9: 3.67 | L9: 9.97 | M9: 14.15 | N9: 12.69 | O9: 9.88 | P9: 9.53 | Q9: 16.96 | R9: 13.81 | S9: 15.73 | T9: 11.1 | V9: =AVERAGE(E9:T9) -> 10.706875 | X9: 5
A11: Jørgen Cilleborg Hansen - Steen Schou | E11: 11.42 | F11: 10.57 | G11: 13.91 | H11: 16.8 | I11: 0.66 | J11: 7.43 | K11: 16.33 | L11: 11.99 | M11: 6.35 | N11: 8.58 | O11: 7.63 | P11: 2.96 | Q11: 2.75 | R11: 12.15 | S11: 15.37 | T11: 4.09 | V11: =AVERAGE(E11:T11) -> 9.311875 | X11: 12
A12: Asger Bruhn - Benny Marquart | E12: 2.07 | F12: 12.63 | G12: 8.21 | H12: 3.61 | I12: 10.94 | J12: 3.2 | K12: 8.32 | L12: 10.03 | M12: 17.54 | N12: 13.57 | O12: 15.53 | P12: 14.29 | Q12: 12.61 | R12: 10.14 | S12: 1.55 | T12: 9.04 | V12: =AVERAGE(E12:T12) -> 9.58 | X12: 9
A14: Marlene Henneberg - J.O Henneberg | E14: 13.31 | F14: 9.21 | G14: 12.62 | H14: 8.18 | I14: 10.74 | J14: 6.22 | K14: 15.25 | L14: 4.66 | M14: 5.85 | N14: 9.4 | O14: 12.37 | P14: 5.71 | Q14: 11.06 | R14: 10.58 | S14: 4.27 | T14: 11.98 | V14: =AVERAGE(E14:T14) -> 9.463125 | X14: 11
A15: Nikolaj Krefeld Hammelev - Lars Peter Damgaard | E15: 6.25 | F15: 6.47 | G15: 14.97 | H15: 17.75 | I15: 8.52 | J15: 11.5 | K15: 11.94 | L15: 10.59 | M15: 11.85 | N15: 7.31 | O15: 4.47 | P15: 17.04 | Q15: 6.52 | R15: 10.92 | S15: 7.86 | T15: 8.9 | V15: =AVERAGE(E15:T15) -> 10.17875 | X15: 6
A17: Martin Klausen - Palle Jensen | E17: 6.69 | F17: 13.53 | G17: 7.28 | H17: 7.69 | I17: 11.61 | J17: 5.72 | K17: 5.04 | L17: 3.02 | M17: 6.95 | N17: 1.06 | O17: 10.12 | P17: 7.51 | Q17: 17.25 | R17: 9.86 | S17: 6.31 | T17: 4.75 | V17: =AVERAGE(E17:T17) -> 7.774375 | X17: 16
A18: Emil Jepsen - Peter Jepsen | E18: 13.75 | F18: 10.79 | G18: 10.73 | H18: 6.82 | I18: 6.38 | J18: 14.86 | K18: 9.39 | L18: 14.94 | M18: 12.31 | N18: 10.51 | O18: 8.89 | P18: 10.47 | Q18: 7.39 | R18: 7.85 | S18: 13.58 | T18: 3.5 | V18: =AVERAGE(E18:T18) -> 10.135 | X18: 7
A20: Jens Kofoed - Emil Buus Thomsen | E20: 17.93 | F20: 9.43 | G20: 7.38 | H20: 2.25 | I20: 8.39 | J20: 5.14 | K20: 13.93 | L20: 7.48 | M20: 7.81 | N20: 7.12 | O20: 4.06 | P20: 10.52 | Q20: 17.33 | R20: 6.19 | S20: 6.42 | T20: 15.25 | V20: =AVERAGE(E20:T20) -> 9.164375 | X20: 13
A21: Kresten Roland Johansen - Troels Buus Thomsen | E21: 8.58 | F21: 7.37 | G21: 5.03 | H21: 11.82 | I21: 13.62 | J21: 14.28 | K21: 14.28 | L21: 3.46 | M21: 7.99 | N21: 9.5 | O21: 5.05 | P21: 6.91 | Q21: 3.04 | R21: 4.8 | S21: 13.69 | T21: 16.5 | V21: =AVERAGE(E21:T21) -> 9.12 | X21: 14
A23: Camilla Bo Krefeld - Johan Hammelev | E23: 9.59 | F23: 15.22 | G23: 6.09 | H23: 16.39 | I23: 11.48 | J23: 13.78 | K23: 10.61 | L23: 16.98 | M23: 12.19 | N23: 10.5 | O23: 6.1 | P23: 14.83 | Q23: 13.08 | R23: 3.15 | S23: 10.76 | T23: 3.57 | V23: =AVERAGE(E23:T23) -> 10.895 | X23: 4
A24: Lida Hulgaard - Øjvind Hulgaard | E24: 5.93 | F24: 9.2 | G24: 11.79 | H24: 3.2 | I24: 9.26 | J24: 8.5 | K24: 14.96 | L24: 5.06 | M24: 12.01 | N24: 12.88 | O24: 11.79 | P24: 10.05 | Q24: 12.97 | R24: 2.87 | S24: 7.79 | T24: 6.7 | V24: =AVERAGE(E24:T24) -> 9.06 | X24: 15
A26: Jesper Bechsgaard - Anders Handberg Sørensen | E26: 5.55 | F26: 14.22 | G26: 12.72 | H26: 13.18 | I26: 9.09 | J26: 6.66 | K26: 5.72 | L26: 12.52 | M26: 13.65 | N26: 6.43 | O26: 8.21 | P26: 5.17 | Q26: 13.48 | R26: 9.42 | S26: 4.63 | T26: 10.96 | V26: =AVERAGE(E26:T26) -> 9.475625 | X26: 10
A27: Jan Pedersen - Nils Mønsted | E27: 6.92 | F27: 15.44 | G27: 9.27 | H27: 12.31 | I27: 16.36 | J27: 7.03 | K27: 6.07 | L27: 16.54 | M27: 2.46 | N27: 11.42 | O27: 13.9 | P27: 9.95 | Q27: 8.94 | R27: 9.08 | S27: 18.45 | T27: 15.91 | V27: =AVERAGE(E27:T27) -> 11.253125 | X27: 3
A44: Øjvind Hulgaard - Jesper Gad
A45: Niels Krøjgaard - Henrik Caspersen - H C Graversen

Sheet RR1
A1: Multi, RR1
E3: 1 | F3: 2 | G3: 3 | H3: 4 | I3: 5 | J3: 6 | K3: 7 | L3: 8 | M3: 9 | N3: 10 | O3: 11 | P3: 12 | Q3: 13 | R3: 14 | T3: Total | U3: Placering
A5: Jan Pedersen - Nils Mønsted | E5: 10.11 | F5: 11.49 | G5: 12.35 | H5: 14.78 | I5: 10.24 | J5: 16.22 | K5: 4.12 | L5: 9.81 | M5: 9.34 | N5: 8.69 | O5: 3.34 | P5: 7.77 | Q5: 12.91 | R5: 13.04 | T5: =AVERAGE(E5:R5) -> 10.30071429 | U5: 10
A6: Camilla Bo Krefeld - Johan Hammelev | E6: 12.94 | F6: 11.69 | G6: 16.72 | H6: 8.37 | I6: 9.98 | J6: 17.96 | K6: 5.36 | L6: 4.85 | M6: 12.16 | N6: 16.25 | O6: 9.53 | P6: 7.44 | Q6: 7.97 | R6: 13.83 | T6: =AVERAGE(E6:R6) -> 11.075 | U6: 4
A8: Asger Bruhn - Benny Marquart | E8: 13.47 | F8: 12.26 | G8: 3.28 | H8: 5.22 | I8: 6.93 | J8: 10.78 | K8: 5.61 | L8: 13.93 | M8: 9.67 | N8: 8.04 | O8: 11.94 | P8: 12.01 | Q8: 0.89 | R8: 8.71 | T8: =AVERAGE(E8:R8) -> 8.767142857 | U8: 13
A9: Martin Klausen - Palle Jensen | E9: 5.08 | F9: 2.35 | G9: 7.65 | H9: 11.63 | I9: 4.06 | J9: 10.04 | K9: 6.32 | L9: 4.1 | M9: 14.26 | N9: 6.24 | O9: 3.71 | P9: 7.48 | Q9: 6.18 | R9: 5.89 | T9: =AVERAGE(E9:R9) -> 6.853846154 | U9: 16
A11: Morten Bilde - Søren Cilleborg Bilde | E11: 16.81 | F11: 12.75 | G11: 14.33 | H11: 11.72 | I11: 9.76 | J11: 2.04 | K11: 14.38 | L11: 15.9 | M11: 12.56 | N11: 4.41 | O11: 10.94 | P11: 12.88 | Q11: 11.82 | R11: 7.7 | T11: =AVERAGE(E11:R11) -> 11.28571429 | U11: 3
A12: Emil Jepsen - Peter Jepsen | E12: 10.68 | F12: 8.85 | G12: 7.87 | H12: 12.83 | I12: 10.02 | J12: 3.78 | K12: 13.68 | L12: 6.07 | M12: 4.22 | N12: 12.72 | O12: 17.76 | P12: 15.58 | Q12: 11.3 | R12: 14.95 | T12: =AVERAGE(E12:R12) -> 10.73642857 | U12: 7
A14: Ricardo Mirasola - Jan Kølbæk | E14: 13.87 | F14: 7.65 | G14: 6.13 | H14: 8.56 | I14: 13.87 | J14: 15.4 | K14: 14.64 | L14: 10.19 | M14: 10.33 | N14: 13.76 | O14: 9.06 | P14: 4.42 | Q14: 11.58 | R14: 15.26 | T14: =AVERAGE(E14:R14) -> 11.05142857 | U14: 5
A15: Marlene Henneberg - J.O Henneberg | E15: 8.77 | F15: 1.44 | G15: 11.38 | H15: 18.41 | I15: 15.66 | J15: 14.98 | K15: 15.88 | L15: 15.15 | M15: 5.74 | N15: 11.96 | O15: 2.24 | P15: 7.12 | Q15: 11.41 | R15: 10.05 | T15: =AVERAGE(E15:R15) -> 10.72785714 | U15: 8
A17: Nikolaj Krefeld Hammelev - Lars Peter Damgaard | E17: 11.23 | F17: 12.35 | G17: 16.27 | H17: 11.4 | I17: 6.84 | J17: 15.88 | K17: 15.29 | L17: 10 | M17: 7.84 | N17: 11.31 | O17: 8.06 | P17: 12.52 | Q17: 8.18 | R17: 5.05 | T17: =AVERAGE(E17:R17) -> 10.87285714 | U17: 6
A18: Kresten Roland Johansen - Troels Buus Thomsen | E18: 6.13 | F18: 18.56 | G18: 8.93 | H18: 9.07 | I18: 5.51 | J18: 12.97 | K18: 13.29 | L18: 8.08 | M18: 10.66 | N18: 3.75 | O18: 16.29 | P18: 7.99 | Q18: 8.7 | R18: 12.3 | T18: =AVERAGE(E18:R18) -> 10.15928571 | U18: 11
A20: Henrik Caspersen - Niels Krøjgaard | E20: 9.32 | F20: 7.25 | G20: 13.87 | H20: 1.59 | I20: 13.16 | J20: 7.03 | K20: 13.41 | L20: 12.01 | M20: 16.5 | N20: 16.22 | O20: 10.47 | P20: 12.23 | Q20: 19.11 | R20: 14.11 | T20: =AVERAGE(E20:R20) -> 11.87714286 | U20: 1
A21: Jens Kofoed - Emil Buus Thomsen | E21: 3.19 | F21: 11.15 | G21: 8.62 | H21: 11.44 | I21: 14.49 | J21: 4.12 | K21: 11.95 | L21: 5.22 | M21: 15.56 | N21: 18.77 | O21: 16.66 | P21: 12.56 | Q21: 13.82 | R21: 11.29 | T21: =AVERAGE(E21:R21) -> 11.34571429 | U21: 2
A23: Lida Hulgaard - Øjvind Hulgaard | E23: 14.92 | F23: 7.74 | G23: 12.13 | H23: 8.28 | I23: 6.13 | J23: 5.02 | K23: 6.71 | L23: 10 | M23: 3.5 | N23: 1.23 | O23: 9.62 | P23: 7.62 | Q23: 7.09 | R23: 6.17 | T23: =AVERAGE(E23:R23) -> 7.582857143 | U23: 14
A24: Jesper Bechsgaard - Anders Handberg Sørensen | E24: 6.53 | F24: 17.65 | G24: 5.67 | H24: 7.17 | I24: 4.34 | J24: 4.6 | K24: 4.71 | L24: 11.92 | M24: 4.44 | N24: 3.78 | O24: 4.83 | P24: 5.46 | Q24: 12.03 | R24: 6.96 | T24: =AVERAGE(E24:R24) -> 7.149285714 | U24: 15
A26: Jørgen Cilleborg Hansen - Steen Schou | E26: 9.89 | F26: 8.31 | G26: 3.73 | H26: 10.93 | I26: 13.07 | J26: 9.96 | K26: 6.59 | L26: 14.78 | M26: 15.78 | N26: 15.59 | O26: 10.38 | P26: 14.54 | Q26: 8.59 | R26: 4.74 | T26: =AVERAGE(E26:R26) -> 10.49142857 | U26: 9
A27: H K Sørensen - Niels Henriksen | E27: 7.06 | F27: 8.51 | G27: 11.07 | H27: 8.6 | I27: 15.94 | J27: 9.22 | K27: 8.05 | L27: 7.99 | M27: 7.44 | N27: 7.28 | O27: 15.17 | P27: 12.38 | Q27: 8.42 | R27: 9.95 | T27: =AVERAGE(E27:R27) -> 9.791428571 | U27: 12

Sheet Imp Par
A1: IMP Par
B4: 1 | C4: 2 | D4: 3 | E4: 4 | F4: 5 | I4: Placering
A5: Jesper Bechsgaard - Anders Handberg Sørensen | B5: 17 | C5: 56.1 | D5: 7.9 | E5: 27 | F5: -4 | H5: =SUM(B5:F5) -> 104 | I5: 1
A6: Asger Bruhn - Benny Marquart | B6: 27 | C6: 56.4 | D6: -11.3 | E6: -5.1 | F6: 5.9 | H6: 72.9 | I6: 2
A7: Henrik Caspersen - Niels Krøjgaard | B7: -9.7 | C7: 13.9 | D7: 5.5 | E7: 53.7 | F7: 8.7 | H7: 72.1 | I7: 3
A8: Marlene Henneberg - J.O Henneberg | B8: 10.3 | C8: 12.1 | D8: 21.9 | E8: 19.6 | F8: 2.9 | H8: 66.8 | I8: 4
A9: Jens Kofoed - Emil Buus Thomsen | B9: 15.1 | C9: 6.6 | D9: 15.9 | E9: 2.7 | F9: 18.6 | H9: 58.9 | I9: 5
A10: Emil Jepsen - Peter Jepsen | B10: 13.3 | C10: -56.6 | D10: 21.9 | E10: 68 | F10: 5 | H10: 51.6 | I10: 6
A11: Jørgen Cilleborg Hansen - Steen Schou | B11: 29.6 | C11: 30.1 | D11: 23 | E11: -45 | F11: 6.9 | H11: 44.6 | I11: 7
A12: Camilla Bo Krefeld - Johan Hammelev | B12: 20.9 | C12: 37.3 | D12: 1.1 | E12: -27.2 | F12: -3.9 | H12: 28.2 | I12: 8
A13: Ricardo Mirasola - Jan Kølbæk | B13: 40.1 | C13: -8.3 | D13: 23.9 | E13: -22 | F13: -19.7 | H13: 14 | I13: 9
A14: Jan Pedersen - Nils Mønsted | B14: -22.1 | C14: -9 | D14: -14.3 | E14: 20.3 | F14: 22.7 | H14: -2.4 | I14: 10
A15: H K Sørensen - Niels Henriksen | B15: -3.3 | C15: 28.6 | D15: -7.9 | E15: 7.2 | F15: -30.4 | H15: -5.8 | I15: 11
A16: Kresten Roland Johansen - Troels Buus Thomsen | B16: -22.1 | C16: -5.4 | D16: 20.1 | E16: -25.9 | F16: 0.4 | H16: -32.9 | I16: 12
A17: Lida Hulgaard - Øjvind Hulgaard | B17: -2.9 | C17: -27.8 | D17: 3.7 | E17: -38.3 | F17: 11 | H17: -54.3 | I17: 13
A18: Nikolaj Krefeld Hammelev - Lars Peter Damgaard | B18: -48.9 | C18: -37.7 | D18: -80 | E18: 70.2 | F18: -0.3 | H18: -96.7 | I18: 14
A19: Morten Bilde - Søren Cilleborg Bilde | B19: -13.4 | C19: -52.3 | D19: -15.1 | E19: -30.2 | F19: -12.9 | H19: -123.9 | I19: 15
A20: Martin Klausen - Palle Jensen | B20: -50.9 | C20: -44 | D20: -16.3 | E20: -74.9 | F20: -10.9 | H20: -197 | I20: 16
B21: =SUM(B5:B20) -> 0 | C21: =SUM(C5:C20) -> -5.684341886e-14 | D21: 0 | E21: 0.1 | F21: 0 | H21: =SUM(H5:H20) -> 0.1

Sheet RR2
A1: Multi, RR2
E3: 1 | F3: 2 | G3: 3 | H3: 4 | I3: 5 | J3: 6 | K3: 7 | L3: 8 | M3: 9 | N3: 10 | O3: 11 | P3: 12 | Q3: 13 | R3: 14 | T3: Total | U3: Placering
A5: Jan Pedersen - Nils Mønsted | E5: 8.18 | F5: 12.41 | G5: 16.3 | H5: 15.34 | I5: 5.63 | J5: 8.91 | K5: 6.98 | L5: 6.86 | M5: 17.15 | N5: 9.87 | O5: 6.44 | P5: 12.39 | Q5: 3.24 | R5: 6.84 | T5: =AVERAGE(E5:R5) -> 9.752857143 | U5: 10
A6: Camilla Bo Krefeld - Johan Hammelev | E6: 9.68 | F6: 9.12 | G6: 12.61 | H6: 14.28 | I6: 7.13 | J6: 6.4 | K6: 13.39 | L6: 10.19 | M6: 14.66 | N6: 13.9 | O6: 2.29 | P6: 13.87 | Q6: 9.97 | R6: 14.37 | T6: =AVERAGE(E6:R6) -> 10.84714286 | U6: 3
A8: Asger Bruhn - Benny Marquart | E8: 11.64 | F8: 11.09 | G8: 12.59 | H8: 3.7 | I8: 10.91 | J8: 7.42 | K8: 13.77 | L8: 11.87 | M8: 5.34 | N8: 10.13 | O8: 8.35 | P8: 5.46 | Q8: 11.8 | R8: 11.71 | T8: =AVERAGE(E8:R8) -> 9.698571429 | U8: 11
A9: Martin Klausen - Palle Jensen | E9: 7.97 | F9: 6.59 | G9: 9.08 | H9: 5.97 | I9: 4.77 | J9: 12.26 | K9: 10.22 | L9: 5.88 | M9: 2.85 | N9: 6.1 | O9: 6.57 | P9: 8.92 | Q9: 13.7 | R9: 7.32 | T9: =AVERAGE(E9:R9) -> 7.728571429 | U9: 16
A11: Morten Bilde - Søren Cilleborg Bilde | E11: 11.24 | F11: 5.79 | G11: 10.54 | H11: 4.53 | I11: 9.09 | J11: 7.74 | K11: 10.45 | L11: 16.15 | M11: 10.28 | N11: 7.45 | O11: 13.56 | P11: 6.13 | Q11: 11.25 | R11: 3.28 | T11: =AVERAGE(E11:R11) -> 9.105714286 | U11: 14
A12: Emil Jepsen - Peter Jepsen | E12: 14.78 | F12: 14.25 | G12: 13.06 | H12: 15.18 | I12: 15.23 | J12: 12.58 | K12: 4.71 | L12: 15.59 | M12: 10.93 | N12: 7.53 | O12: 17.71 | P12: 7.61 | Q12: 11.57 | R12: 11.64 | T12: =AVERAGE(E12:R12) -> 12.31214286 | U12: 1
A14: Ricardo Mirasola - Jan Kølbæk | E14: 12.03 | F14: 8.91 | G14: 9.46 | H14: 4.82 | I14: 13.17 | J14: 11.54 | K14: 6.61 | L14: 13.14 | M14: 7.6 | N14: 10.54 | O14: 12.49 | P14: 9.95 | Q14: 9.95 | R14: 4.23 | T14: =AVERAGE(E14:R14) -> 9.380769231 | U14: 12
A15: Marlene Henneberg - J.O Henneberg | E15: 8.36 | F15: 13.41 | G15: 6.94 | H15: 15.47 | I15: 9.52 | J15: 0.52 | K15: 13.02 | L15: 9.81 | M15: 7.96 | N15: 4.58 | O15: 17.15 | P15: 13.21 | Q15: 15.1 | R15: 9.44 | T15: =AVERAGE(E15:R15) -> 10.32071429 | U15: 6
A17: Nikolaj Krefeld Hammelev - Lars Peter Damgaard | E17: 10.32 | F17: 7.59 | G17: 10.92 | H17: 16.3 | I17: 9.78 | J17: 10.09 | K17: 9.55 | L17: 4.41 | M17: 5.67 | N17: 12.68 | O17: 9.14 | P17: 12.24 | Q17: 4.9 | R17: 15.77 | T17: =AVERAGE(E17:R17) -> 9.954285714 | U17: 9
A18: Kresten Roland Johansen - Troels Buus Thomsen | E18: 11.82 | F18: 10.88 | G18: 7.41 | H18: 14.03 | I18: 18.07 | J18: 6.42 | K18: 15.29 | L18: 3.85 | M18: 9.16 | N18: 14.54 | O18: 7.87 | P18: 7 | Q18: 10.05 | R18: 10.56 | T18: =AVERAGE(E18:R18) -> 10.49642857 | U18: 4
A20: Henrik Caspersen - Niels Krøjgaard | E20: 7.66 | F20: 8.32 | G20: 10.76 | H20: 7.53 | I20: 6.86 | J20: 19.48 | K20: 6.23 | L20: 14.12 | M20: 9.72 | N20: 12.47 | O20: 12.13 | P20: 7.76 | Q20: 16.76 | R20: 5.63 | T20: =AVERAGE(E20:R20) -> 10.38785714 | U20: 5
A21: Jens Kofoed - Emil Buus Thomsen | E21: 6.03 | F21: 8.99 | G21: 6.08 | H21: 14.34 | I21: 10.48 | J21: 8.46 | K21: 9.78 | L21: 8.13 | M21: 9.07 | N21: 12.55 | O21: 10.86 | P21: 13 | Q21: 10.03 | R21: 13.16 | T21: =AVERAGE(E21:R21) -> 10.06857143 | U21: 8
A23: Lida Hulgaard - Øjvind Hulgaard | E23: 8.76 | F23: 5.75 | G23: 9.24 | H23: 5.66 | I23: 12.87 | J23: 11.09 | K23: 4.18 | L23: 8.51 | M23: 14.33 | N23: 5.46 | O23: 2.85 | P23: 10.05 | Q23: 8.2 | R23: 12.68 | T23: =AVERAGE(E23:R23) -> 8.545 | U23: 15
A24: Jesper Bechsgaard - Anders Handberg Sørensen | E24: 5.22 | F24: 14.21 | G24: 13.92 | H24: 12.97 | I24: 14.37 | J24: 13.6 | K24: 8.39 | L24: 10.61 | M24: 10.84 | N24: 7.32 | O24: 7.51 | P24: 6.79 | Q24: 6.3 | R24: 8.29 | T24: =AVERAGE(E24:R24) -> 10.27307692 | U24: 7
A26: Jørgen Cilleborg Hansen - Steen Schou | E26: 13.97 | F26: 11.68 | G26: 7.39 | H26: 4.66 | I26: 10.22 | J26: 13.58 | K26: 15.82 | L26: 8.39 | M26: 12.4 | N26: 15.42 | O26: 13.43 | P26: 14.54 | Q26: 8.43 | R26: 16.72 | T26: =AVERAGE(E26:R26) -> 11.90357143 | U26: 2
A27: H K Sørensen - Niels Henriksen | E27: 12.34 | F27: 11.01 | G27: 3.7 | H27: 5.72 | I27: 1.93 | J27: 9.91 | K27: 11.61 | L27: 11.49 | M27: 12.04 | N27: 9.46 | O27: 11.65 | P27: 11.08 | Q27: 8.75 | R27: 8.36 | T27: =AVERAGE(E27:R27) -> 9.217857143 | U27: 13

Sheet Hold i alt
A1: Klub 32 - Hold 2024/25
B5: RR1 | C5: RR2 | D5: Total | E5: Placering
A6: Peter Jepsen | B6: 88.82 | C6: 83.41 | D6: =SUM(B6:C6) -> 172.23 | E6: 1
A7: Henrik Caspersen | B7: 87.55 | C7: 75.8 | D7: 163.35 | E7: 2
A8: Camilla Bo Krefeld | B8: 83.8 | C8: 72.38 | D8: 156.18 | E8: 3
A9: Hans Kristian Sørensen | B9: 71.57 | C9: 82.87 | D9: 154.44 | E9: 4
A10: Marlene Henneberg | B10: 86.39 | C10: 67.17 | D10: 153.56 | E10: 5
A11: Lars Peter Damgaard | B11: 78.6 | C11: 74.66 | D11: 153.26 | E11: 6
A12: Lida Hulgaard | B12: 36.13 | C12: 55.49 | D12: 91.62 | E12: 7
A13: Benny Marquart | B13: 27.14 | C13: 48.25 | D13: 75.39 | E13: 8

Sheet Slutspil
A1: SLUTSPIL
E4: 1 | F4: 2 | G4: 3 | H4: 4 | I4: 5 | J4: 6 | K4: 7 | L4: 8 | N4: Total | O4: Placering
A6: Jan Pedersen - Nils Mønsted | E6: 4.9 | F6: 10.79 | G6: 10.1 | H6: 15.68 | I6: 7.72 | J6: 14.11 | K6: 12.56 | L6: 15.93 | N6: =AVERAGE(E6:L6) -> 11.47375 | O6: 3
A7: Camilla Bo Krefeld - Johan Hammelev | E7: 8.86 | F7: 4.44 | G7: 2.66 | H7: 16.55 | I7: 8.85 | J7: 8.09 | K7: 12.7 | L7: 17.98 | N7: =AVERAGE(E7:L7) -> 10.01625 | O7: 6
A9: Asger Bruhn - Benny Marquart | E9: 2.61 | F9: 6.12 | G9: 15.51 | H9: 7.46 | I9: 5.6 | J9: 9.54 | K9: 15.47 | L9: 9.25 | N9: =AVERAGE(E9:L9) -> 8.945 | O9: 14
A10: Martin Klausen - Palle Jensen | E10: 9.07 | F10: 1 | G10: 7.06 | H10: 0.68 | I10: 9.17 | J10: 8.54 | K10: 10.96 | L10: 11.68 | N10: 7.27 | O10: 16
A12: Morten Bilde - Søren Cilleborg Bilde | E12: 9.63 | F12: 6.12 | G12: 7.14 | H12: 2.41 | I12: 12.63 | J12: 12.24 | K12: 12.5 | L12: 7.88 | N12: =AVERAGE(E12:L12) -> 8.81875 | O12: 15
A13: Emil Jepsen - Peter Jepsen | E13: 10.32 | F13: 3.67 | G13: 8.77 | H13: 12.5 | I13: 8.91 | J13: 12.55 | K13: 18.3 | L13: 13.98 | N13: 11.125 | O13: 4
A15: Ricardo Mirasola - Jan Kølbæk | E15: 17.39 | F15: 19 | G15: 4.49 | H15: 19.32 | I15: 13.55 | J15: 17.78 | K15: 9.94 | L15: 14.23 | N15: =AVERAGE(E15:L15) -> 14.4625 | O15: 1
A16: Marlene Henneberg - J.O Henneberg | E16: 10.93 | F16: 13.88 | G16: 12.94 | H16: 12.54 | I16: 12.26 | J16: 13.08 | K16: 8.79 | L16: 8.51 | N16: 11.61625 | O16: 2
A18: Nikolaj Krefeld Hammelev - Lars Peter Damgaard | E18: 7.97 | F18: 12.05 | G18: 13.25 | H18: 12.29 | I18: 7.74 | J18: 2.22 | K18: 10.06 | L18: 11.49 | N18: =AVERAGE(E18:L18) -> 9.63375 | O18: 8
A19: Kresten Roland Johansen - Troels Buus Thomsen | E19: 9.79 | F19: 13.28 | G19: 10.61 | H19: 9.84 | I19: 6.45 | J19: 6.92 | K19: 11.21 | L19: 5.77 | N19: 9.23375 | O19: 12
A21: Henrik Caspersen - Niels Krøjgaard | E21: 15.1 | F21: 15.56 | G21: 9.9 | H21: 3.45 | I21: 7.37 | J21: 7.45 | K21: 1.7 | L21: 12.12 | N21: =AVERAGE(E21:L21) -> 9.08125 | O21: 13
A22: Jens Kofoed - Emil Buus Thomsen | E22: 11.14 | F22: 9.21 | G22: 17.34 | H22: 4.32 | I22: 11.09 | J22: 7.76 | K22: 7.5 | L22: 6.02 | N22: 9.2975 | O22: 10
A24: Lida Hulgaard - Øjvind Hulgaard | E24: 10.21 | F24: 7.95 | G24: 9.39 | H24: 7.71 | I24: 14.4 | J24: 11.46 | K24: 4.53 | L24: 8.32 | N24: =AVERAGE(E24:L24) -> 9.24625 | O24: 11
A25: Jesper Bechsgaard - Anders Handberg Sørensen | E25: 12.03 | F25: 6.72 | G25: 6.75 | H25: 10.16 | I25: 10.83 | J25: 10.46 | K25: 9.04 | L25: 10.75 | N25: 9.5925 | O25: 9
A27: Jørgen Cilleborg Hansen - Steen Schou | E27: 10.37 | F27: 16.33 | G27: 11.23 | H27: 17.59 | I27: 11.15 | J27: 5.89 | K27: 7.44 | L27: 2.03 | N27: =AVERAGE(E27:L27) -> 10.25375 | O27: 5
A28: H K Sørensen - Niels Henriksen | E28: 9.68 | F28: 13.88 | G28: 12.86 | H28: 7.5 | I28: 12.28 | J28: 11.91 | K28: 7.3 | L28: 4.07 | N28: 9.935 | O28: 7

Sheet Par
A1: Par
B3: 1.aften | C3: 2.aften | D3: 3.aften | E3: 4.aften | F3: 5.aften | H3: Sum | J3: Placering
A4: Jørgen Cilleborg Hansen - Steen Schou | B4: 28 | C4: 3 | D4: 11 | E4: 50 | H4: =SUM(B4:G4) -> 92 | J4: 1
A5: Jan Pedersen - Nils Mønsted | B5: 35 | C5: 24 | D5: 3 | E5: 14 | H5: =SUM(B5:G5) -> 76 | J5: 2
A6: Kresten Roland Johansen - Troels Buus Thomsen | B6: 27 | C6: 5 | D6: 11 | E6: 4 | H6: =SUM(B6:G6) -> 47 | J6: 3
A7: Ricardo Mirasola - Jan Kølbæk | B7: 2 | C7: -14 | D7: 38 | E7: 15 | H7: =SUM(B7:G7) -> 41 | J7: 4
A8: Emil Jepsen - Peter Jepsen | B8: -2 | C8: -3 | D8: 9 | E8: 29 | H8: =SUM(B8:G8) -> 33 | J8: 5
A9: Jens Kofoed - Emil Buus Thomsen | B9: -26 | C9: 15 | D9: 8 | E9: 29 | H9: =SUM(B9:G9) -> 26 | J9: 6
A10: Marlene Henneberg - J.O Henneberg | B10: 6 | C10: 7 | D10: 14 | E10: -4 | H10: =SUM(B10:G10) -> 23 | J10: 7
A11: Morten Bilde - Søren Cilleborg Bilde | B11: -7 | C11: -30 | D11: 30 | E11: 21 | H11: =SUM(B11:G11) -> 14 | J11: 8
A12: Camilla Bo Krefeld - Johan Hammelev | B12: 26 | C12: 1 | D12: -29 | E12: -3 | H12: =SUM(B12:G12) -> -5 | J12: 9
A13: Asger Bruhn - Benny Marquart | B13: -25 | C13: 28 | D13: -17 | E13: 6 | H13: =SUM(B13:G13) -> -8 | J13: 10
A14: Lida Hulgaard - Øjvind Hulgaard | B14: -7 | C14: -15 | D14: 23 | E14: -26 | H14: =SUM(B14:G14) -> -25 | J14: 11
A15: H K Sørensen - Niels Henriksen | B15: 17 | C15: 16 | D15: -35 | E15: -40 | H15: =SUM(B15:G15) -> -42 | J15: 12
A16: Martin Klausen - Palle Jensen | B16: -18 | C16: -28 | D16: -36 | E16: 25 | H16: =SUM(B16:G16) -> -57 | J16: 13
A17: Jesper Bechsgaard - Anders Handberg Sørensen | B17: -22 | C17: -12 | D17: -9 | E17: -15 | H17: =SUM(B17:G17) -> -58 | J17: 14
A18: Nikolaj Krefeld Hammelev - Lars Peter Damgaard | B18: -36 | C18: 26 | D18: -14 | E18: -51 | H18: =SUM(B18:G18) -> -75 | J18: 15
A19: Henrik Caspersen - Niels Krøjgaard | B19: 2 | C19: -23 | D19: -7 | E19: -54 | H19: =SUM(B19:G19) -> -82 | J19: 16
B22: =SUM(B4:B21) -> 0 | C22: =SUM(C4:C21) -> 0 | D22: 0 | E22: 0 | F22: 0 | H22: 0

Sheet Grand prix
A1: Grand prix klub 32 (2024-2025)
F3: Intro hold | G3: RR 1 | H3: IMP1 | I3: RR2 | J3: Slutspil | K3: Par | M3: Total | O3: Placering
A5: Emil Jepsen - Peter Jepsen | F5: =Intro!X18*4 -> 28 | G5: ='RR1'!U12*7 -> 49 | H5: ='Imp Par'!I10*5 -> 30 | I5: ='RR2'!U12*7 -> 7 | J5: =Slutspil!O13*4 -> 16 | K5: =Par!J8*5 -> 25 | M5: =SUM(F5:L5) -> 155 | O5: 1
A6: Camilla Bo Krefeld - Johan Hammelev | F6: =Intro!X23*4 -> 16 | G6: ='RR1'!U6*7 -> 28 | H6: ='Imp Par'!I12*5 -> 40 | I6: ='RR2'!U6*7 -> 21 | J6: =Slutspil!O7*4 -> 24 | K6: =Par!J12*5 -> 45 | M6: =SUM(F6:L6) -> 174 | O6: 2
A7: Jørgen Cilleborg Hansen - Steen Schou | F7: =Intro!X11*4 -> 48 | G7: ='RR1'!U26*7 -> 63 | H7: ='Imp Par'!I11*5 -> 35 | I7: ='RR2'!U26*7 -> 14 | J7: =Slutspil!O27*4 -> 20 | K7: =Par!J4*5 -> 5 | M7: =SUM(F7:L7) -> 185 | O7: 3
A8: Henrik Caspersen - Niels Krøjgaard | F8: =Intro!X5*4 -> 4 | G8: ='RR1'!U20*7 -> 7 | H8: ='Imp Par'!I7*5 -> 15 | I8: ='RR2'!U20*7 -> 35 | J8: =Slutspil!O21*4 -> 52 | K8: =Par!J19*5 -> 80 | M8: =SUM(F8:L8) -> 193 | O8: 4
A9: Marlene Henneberg - J.O Henneberg | F9: =Intro!X14*4 -> 44 | G9: ='RR1'!U15*7 -> 56 | H9: ='Imp Par'!I8*5 -> 20 | I9: ='RR2'!U15*7 -> 42 | J9: =Slutspil!O16*4 -> 8 | K9: =Par!J10*5 -> 35 | M9: =SUM(F9:L9) -> 205 | O9: 5
A10: Ricardo Mirasola - Jan Kølbæk | F10: =Intro!X9*4 -> 20 | G10: ='RR1'!U14*7 -> 35 | H10: ='Imp Par'!I13*5 -> 45 | I10: ='RR2'!U14*7 -> 84 | J10: =Slutspil!O15*4 -> 4 | K10: =Par!J7*5 -> 20 | M10: =SUM(F10:L10) -> 208 | O10: 6
A11: Jens Kofoed - Emil Buus Thomsen | F11: =Intro!X20*4 -> 52 | G11: ='RR1'!U21*7 -> 14 | H11: ='Imp Par'!I9*5 -> 25 | I11: ='RR2'!U21*7 -> 56 | J11: =Slutspil!O22*4 -> 40 | K11: =Par!J9*5 -> 30 | M11: =SUM(F11:L11) -> 217 | O11: 7
A12: Jan Pedersen - Nils Mønsted | F12: =Intro!X27*4 -> 12 | G12: ='RR1'!U5*7 -> 70 | H12: ='Imp Par'!I14*5 -> 50 | I12: ='RR2'!U5*7 -> 70 | J12: =Slutspil!O6*4 -> 12 | K12: =Par!J5*5 -> 10 | M12: =SUM(F12:L12) -> 224 | O12: 8
A13: Kresten Roland Johansen - Troels Buus Thomsen | F13: =Intro!X21*4 -> 56 | G13: ='RR1'!U18*7 -> 77 | H13: ='Imp Par'!I16*5 -> 60 | I13: ='RR2'!U18*7 -> 28 | J13: =Slutspil!O19*4 -> 48 | K13: =Par!J6*5 -> 15 | M13: =SUM(F13:L13) -> 284 | O13: 9
A14: Jesper Bechsgaard - Anders Handberg Sørensen | F14: =Intro!X26*4 -> 40 | G14: ='RR1'!U24*7 -> 105 | H14: ='Imp Par'!I5*5 -> 5 | I14: ='RR2'!U24*7 -> 49 | J14: =Slutspil!O25*4 -> 36 | K14: =Par!J17*5 -> 70 | M14: =SUM(F14:L14) -> 305 | O14: 10
A15: Nikolaj Krefeld Hammelev - Lars Peter Damgaard | F15: =Intro!X15*4 -> 24 | G15: ='RR1'!U17*7 -> 42 | H15: ='Imp Par'!I18*5 -> 70 | I15: ='RR2'!U17*7 -> 63 | J15: =Slutspil!O18*4 -> 32 | K15: =Par!J18*5 -> 75 | M15: =SUM(F15:L15) -> 306 | O15: 11
A16: Asger Bruhn - Benny Marquart | F16: =Intro!X12*4 -> 36 | G16: ='RR1'!U8*7 -> 91 | H16: ='Imp Par'!I6*5 -> 10 | I16: ='RR2'!U8*7 -> 77 | J16: =Slutspil!O9*4 -> 56 | K16: =Par!J13*5 -> 50 | M16: =SUM(F16:L16) -> 320 | O16: 12
A17: H K Sørensen - Niels Henriksen | F17: =Intro!X6*4 -> 8 | G17: ='RR1'!U27*7 -> 84 | H17: ='Imp Par'!I15*5 -> 55 | I17: ='RR2'!U27*7 -> 91 | J17: =Slutspil!O28*4 -> 28 | K17: =Par!J15*5 -> 60 | M17: =SUM(F17:L17) -> 326 | O17: 13
A18: Morten Bilde - Søren Cilleborg Bilde | F18: =Intro!X8*4 -> 32 | G18: ='RR1'!U11*7 -> 21 | H18: ='Imp Par'!I19*5 -> 75 | I18: ='RR2'!U11*7 -> 98 | J18: =Slutspil!O12*4 -> 60 | K18: =Par!J11*5 -> 40 | M18: =SUM(F18:L18) -> 326 | O18: 14
A19: Lida Hulgaard - Øjvind Hulgaard | F19: =Intro!X24*4 -> 60 | G19: ='RR1'!U23*7 -> 98 | H19: ='Imp Par'!I17*5 -> 65 | I19: ='RR2'!U23*7 -> 105 | J19: =Slutspil!O24*4 -> 44 | K19: =Par!J14*5 -> 55 | M19: =SUM(F19:L19) -> 427 | O19: 15
A20: Martin Klausen - Palle Jensen | F20: =Intro!X17*4 -> 64 | G20: ='RR1'!U9*7 -> 112 | H20: ='Imp Par'!I20*5 -> 80 | I20: ='RR2'!U9*7 -> 112 | J20: =Slutspil!O10*4 -> 64 | K20: =Par!J16*5 -> 65 | M20: =SUM(F20:L20) -> 497 | O20: 16
